Workbook

Sheet Uitleg
A1: 09:54:13
A2: Opgave 298 heeft 21 woorden.
A3: Opgave 426 heeft 21 woorden.
A4: Opgave 433 heeft 21 woorden.
A5: Opgave 472 heeft 21 woorden.
A6: Opgave 643 heeft 21 woorden.
A7: Opgave 655 heeft 21 woorden.
A8: Opgave 669 heeft 21 woorden.
A9: Opgave 748 heeft 21 woorden.
A10: Opgave 884 heeft 21 woorden.
A11: Opgave 918 heeft 21 woorden.
A12: Opgave 1060 heeft 21 woorden.
A13: Opgave 1109 heeft 21 woorden.
A14: Opgave 1156 heeft 21 woorden.
A15: Opgave 1172 heeft 21 woorden.
A16: Opgave 1196 heeft 21 woorden.
A17: Opgave 1210 heeft 21 woorden.
A18: Opgave 1219 heeft 22 woorden.ander formaat
A19: Opgave 1315 heeft 21 woorden.
A20: Opgave 1348 heeft 21 woorden.
A34: Op het tabblad Nummer kan U nu zelf een ander kleurtje zetten.
A35: Weet U wat al gedaan is.
A36: Het volgnummer staat nu in kolom C op het tabblad Oplossingen

Sheet Woordzoeker
A4: 1
A5: 2 | T5: De overgebleven cellen vormen van linksboven naar rechtsonder de oplossing
A6: 3 | T6: Typ hieronder(T8) de titel en vergelijk de oplossing met het tabblad Oplossingen
A7: 4 | T7: Titel daarna verwijderen,Oplossing komt in T9 te staan of N/B
A8: 5
A9: 6 | Q9: Gebruik deze knop | T9: =VLOOKUP(T8,Oplossingen!B2:C600,2,0) -> 
A10: 7 | Q10: indien alle woorden | T10: De woorden staan horizontaal,verticaal,diagonaal en omgekeerd.
A11: 8 | Q11: zijn gevonden | T11: Selecteer eerste letter - Hou de controle toets vast en selecteer de nodige cellen.
A12: 9 | T12: Laat de controle toets los.
A13: 10 | T13: Geef de selectie een opvulkleur.
A14: 11 | T14: Maak de woorden onder het rooster rood(tekstkleur) indien gevonden.
Q15: x in kolom A zelf verwijderen. | T15: Daarna terug zwart maken voor eventueel printen.
T17: Plaats een X voor het gevonden woord.(woord bekomt een rode kleur).

Sheet Nummer
A1: NR: | B1: NR: | C1: NR: | D1: NR: | E1: NR: | F1: NR: | G1: NR: | H1: NR: | I1: NR: | J1: NR: | K1: NR: | L1: NR: | M1: NR: | N1: NR: | O1: NR: | P1: NR: | Q1: NR: | R1: NR: | S1: NR: | T1: NR: | U1: NR: | V1: NR: | W1: NR: | X1: NR: | Y1: NR: | Z1: NR: | AA1: NR: | AB1: NR: | AC1: NR: | AD1: NR: | AE1: NR: | AF1: NR: | AG1: NR: | AH1: NR: | AI1: NR: | AJ1: NR: | AK1: NR: | AL1: NR: | AM1: NR: | AN1: NR: | AO1: NR: | AP1: NR: | AQ1: NR: | AR1: NR: | AS1: NR: | AT1: NR: | AU1: NR: | AV1: NR: | AW1: NR: | AX1: NR: | AY1: NR: | AZ1: NR: | BA1: NR: | BB1: NR: | BC1: NR: | BD1: NR: | BE1: NR:
A2: 1 | B2: =A2+35 -> 36 | C2: =B2+35 -> 71 | D2: 106 | E2: 141 | F2: 176 | G2: 211 | H2: 246 | I2: 281 | J2: 316 | K2: 351 | L2: 386 | M2: 421 | N2: 456 | O2: 491 | P2: 526 | Q2: 561 | R2: 596 | S2: 631 | T2: 666 | U2: 701 | V2: 736 | W2: 771 | X2: 806 | Y2: 841 | Z2: 876 | AA2: =Z2+35 -> 911 | AB2: =AA2+35 -> 946 | AC2: 981 | AD2: 1016 | AE2: 1051 | AF2: 1086 | AG2: 1121 | AH2: =AG2+35 -> 1156 | AI2: =AH2+35 -> 1191 | AJ2: 1226 | AK2: 1261 | AL2: 1296 | AM2: 1331 | AN2: 1366 | AO2: 1401 | AP2: 1436 | AQ2: 1471 | AR2: 1506 | AS2: 1541 | AT2: 1576 | AU2: 1611 | AV2: 1646 | AW2: 1681 | AX2: 1716 | AY2: 1751 | AZ2: 1786 | BA2: 1821 | BB2: 1856 | BC2: 1891 | BD2: 1926 | BE2: 1961
A3: 2 | B3: =A3+35 -> 37 | C3: 72 | D3: 107 | E3: 142 | F3: 177 | G3: 212 | H3: 247 | I3: 282 | J3: 317 | K3: 352 | L3: 387 | M3: 422 | N3: 457 | O3: 492 | P3: 527 | Q3: 562 | R3: 597 | S3: 632 | T3: 667 | U3: 702 | V3: 737 | W3: 772 | X3: 807 | Y3: 842 | Z3: 877 | AA3: 912 | AB3: 947 | AC3: 982 | AD3: 1017 | AE3: 1052 | AF3: 1087 | AG3: 1122 | AH3: 1157 | AI3: 1192 | AJ3: 1227 | AK3: 1262 | AL3: 1297 | AM3: 1332 | AN3: 1367 | AO3: 1402 | AP3: 1437 | AQ3: 1472 | AR3: 1507 | AS3: 1542 | AT3: 1577 | AU3: 1612 | AV3: 1647 | AW3: 1682 | AX3: =AW3+35 -> 1717 | AY3: =AX3+35 -> 1752 | AZ3: =AY3+35 -> 1787 | BA3: =AZ3+35 -> 1822 | BB3: =BA3+35 -> 1857 | BC3: =BB3+35 -> 1892 | BD3: =BC3+35 -> 1927 | BE3: =BD3+35 -> 1962
A4: 3 | B4: =A4+35 -> 38 | C4: 73 | D4: 108 | E4: 143 | F4: 178 | G4: 213 | H4: 248 | I4: 283 | J4: 318 | K4: 353 | L4: 388 | M4: 423 | N4: 458 | O4: 493 | P4: 528 | Q4: 563 | R4: 598 | S4: 633 | T4: 668 | U4: 703 | V4: 738 | W4: 773 | X4: 808 | Y4: 843 | Z4: 878 | AA4: 913 | AB4: 948 | AC4: 983 | AD4: 1018 | AE4: 1053 | AF4: 1088 | AG4: 1123 | AH4: 1158 | AI4: 1193 | AJ4: 1228 | AK4: 1263 | AL4: 1298 | AM4: 1333 | AN4: 1368 | AO4: 1403 | AP4: 1438 | AQ4: 1473 | AR4: 1508 | AS4: 1543 | AT4: 1578 | AU4: 1613 | AV4: 1648 | AW4: 1683 | AX4: 1718 | AY4: 1753 | AZ4: 1788 | BA4: 1823 | BB4: 1858 | BC4: 1893 | BD4: 1928 | BE4: 1963
A5: 4 | B5: =A5+35 -> 39 | C5: 74 | D5: 109 | E5: 144 | F5: 179 | G5: 214 | H5: 249 | I5: 284 | J5: 319 | K5: 354 | L5: 389 | M5: 424 | N5: 459 | O5: 494 | P5: 529 | Q5: 564 | R5: 599 | S5: 634 | T5: 669 | U5: 704 | V5: 739 | W5: 774 | X5: 809 | Y5: 844 | Z5: 879 | AA5: 914 | AB5: 949 | AC5: 984 | AD5: 1019 | AE5: 1054 | AF5: 1089 | AG5: 1124 | AH5: 1159 | AI5: 1194 | AJ5: 1229 | AK5: 1264 | AL5: 1299 | AM5: 1334 | AN5: 1369 | AO5: 1404 | AP5: 1439 | AQ5: 1474 | AR5: 1509 | AS5: 1544 | AT5: 1579 | AU5: 1614 | AV5: 1649 | AW5: 1684 | AX5: 1719 | AY5: 1754 | AZ5: 1789 | BA5: 1824 | BB5: 1859 | BC5: 1894 | BD5: 1929 | BE5: 1964
A6: 5 | B6: =A6+35 -> 40 | C6: 75 | D6: 110 | E6: 145 | F6: 180 | G6: 215 | H6: 250 | I6: 285 | J6: 320 | K6: 355 | L6: 390 | M6: 425 | N6: 460 | O6: 495 | P6: 530 | Q6: 565 | R6: 600 | S6: 635 | T6: 670 | U6: 705 | V6: 740 | W6: 775 | X6: 810 | Y6: 845 | Z6: 880 | AA6: 915 | AB6: 950 | AC6: 985 | AD6: 1020 | AE6: 1055 | AF6: 1090 | AG6: 1125 | AH6: 1160 | AI6: 1195 | AJ6: 1230 | AK6: 1265 | AL6: 1300 | AM6: 1335 | AN6: 1370 | AO6: 1405 | AP6: 1440 | AQ6: 1475 | AR6: 1510 | AS6: 1545 | AT6: 1580 | AU6: 1615 | AV6: 1650 | AW6: 1685 | AX6: 1720 | AY6: 1755 | AZ6: 1790 | BA6: 1825 | BB6: 1860 | BC6: 1895 | BD6: 1930 | BE6: 1965
A7: 6 | B7: =A7+35 -> 41 | C7: 76 | D7: 111 | E7: 146 | F7: 181 | G7: 216 | H7: 251 | I7: 286 | J7: 321 | K7: 356 | L7: 391 | M7: 426 | N7: 461 | O7: 496 | P7: 531 | Q7: 566 | R7: 601 | S7: 636 | T7: 671 | U7: 706 | V7: 741 | W7: 776 | X7: 811 | Y7: 846 | Z7: 881 | AA7: 916 | AB7: 951 | AC7: 986 | AD7: 1021 | AE7: 1056 | AF7: 1091 | AG7: 1126 | AH7: 1161 | AI7: 1196 | AJ7: 1231 | AK7: 1266 | AL7: 1301 | AM7: 1336 | AN7: 1371 | AO7: 1406 | AP7: 1441 | AQ7: 1476 | AR7: 1511 | AS7: 1546 | AT7: 1581 | AU7: 1616 | AV7: 1651 | AW7: 1686 | AX7: 1721 | AY7: 1756 | AZ7: 1791 | BA7: 1826 | BB7: 1861 | BC7: 1896 | BD7: 1931 | BE7: 1966
A8: 7 | B8: =A8+35 -> 42 | C8: 77 | D8: 112 | E8: 147 | F8: 182 | G8: 217 | H8: 252 | I8: 287 | J8: 322 | K8: 357 | L8: 392 | M8: 427 | N8: 462 | O8: 497 | P8: 532 | Q8: 567 | R8: 602 | S8: 637 | T8: 672 | U8: 707 | V8: 742 | W8: 777 | X8: 812 | Y8: 847 | Z8: 882 | AA8: 917 | AB8: 952 | AC8: 987 | AD8: 1022 | AE8: 1057 | AF8: 1092 | AG8: 1127 | AH8: 1162 | AI8: 1197 | AJ8: 1232 | AK8: 1267 | AL8: 1302 | AM8: 1337 | AN8: 1372 | AO8: 1407 | AP8: 1442 | AQ8: 1477 | AR8: 1512 | AS8: 1547 | AT8: 1582 | AU8: 1617 | AV8: 1652 | AW8: 1687 | AX8: 1722 | AY8: 1757 | AZ8: 1792 | BA8: 1827 | BB8: 1862 | BC8: 1897 | BD8: 1932 | BE8: 1967
A9: 8 | B9: =A9+35 -> 43 | C9: 78 | D9: 113 | E9: 148 | F9: 183 | G9: 218 | H9: 253 | I9: 288 | J9: 323 | K9: 358 | L9: 393 | M9: 428 | N9: 463 | O9: 498 | P9: 533 | Q9: 568 | R9: 603 | S9: 638 | T9: 673 | U9: 708 | V9: 743 | W9: 778 | X9: 813 | Y9: 848 | Z9: 883 | AA9: 918 | AB9: 953 | AC9: 988 | AD9: 1023 | AE9: 1058 | AF9: 1093 | AG9: 1128 | AH9: 1163 | AI9: 1198 | AJ9: 1233 | AK9: 1268 | AL9: 1303 | AM9: 1338 | AN9: 1373 | AO9: 1408 | AP9: 1443 | AQ9: 1478 | AR9: 1513 | AS9: 1548 | AT9: 1583 | AU9: 1618 | AV9: 1653 | AW9: 1688 | AX9: 1723 | AY9: 1758 | AZ9: 1793 | BA9: 1828 | BB9: 1863 | BC9: 1898 | BD9: 1933 | BE9: 1968
A10: 9 | B10: =A10+35 -> 44 | C10: 79 | D10: 114 | E10: 149 | F10: 184 | G10: 219 | H10: 254 | I10: 289 | J10: 324 | K10: 359 | L10: 394 | M10: 429 | N10: 464 | O10: 499 | P10: 534 | Q10: 569 | R10: 604 | S10: 639 | T10: 674 | U10: 709 | V10: 744 | W10: 779 | X10: 814 | Y10: 849 | Z10: 884 | AA10: 919 | AB10: 954 | AC10: 989 | AD10: 1024 | AE10: 1059 | AF10: 1094 | AG10: 1129 | AH10: 1164 | AI10: 1199 | AJ10: 1234 | AK10: 1269 | AL10: 1304 | AM10: 1339 | AN10: 1374 | AO10: 1409 | AP10: 1444 | AQ10: 1479 | AR10: 1514 | AS10: 1549 | AT10: 1584 | AU10: 1619 | AV10: 1654 | AW10: 1689 | AX10: 1724 | AY10: 1759 | AZ10: 1794 | BA10: 1829 | BB10: 1864 | BC10: 1899 | BD10: 1934 | BE10: 1969
A11: 10 | B11: =A11+35 -> 45 | C11: 80 | D11: 115 | E11: 150 | F11: 185 | G11: 220 | H11: 255 | I11: 290 | J11: 325 | K11: 360 | L11: 395 | M11: 430 | N11: 465 | O11: 500 | P11: 535 | Q11: 570 | R11: 605 | S11: 640 | T11: 675 | U11: 710 | V11: 745 | W11: 780 | X11: 815 | Y11: 850 | Z11: 885 | AA11: 920 | AB11: 955 | AC11: 990 | AD11: 1025 | AE11: 1060 | AF11: 1095 | AG11: 1130 | AH11: 1165 | AI11: 1200 | AJ11: 1235 | AK11: 1270 | AL11: 1305 | AM11: 1340 | AN11: 1375 | AO11: 1410 | AP11: 1445 | AQ11: 1480 | AR11: 1515 | AS11: 1550 | AT11: 1585 | AU11: 1620 | AV11: 1655 | AW11: 1690 | AX11: 1725 | AY11: 1760 | AZ11: 1795 | BA11: 1830 | BB11: 1865 | BC11: 1900 | BD11: 1935 | BE11: 1970
A12: 11 | B12: =A12+35 -> 46 | C12: 81 | D12: 116 | E12: 151 | F12: 186 | G12: 221 | H12: 256 | I12: 291 | J12: 326 | K12: 361 | L12: 396 | M12: 431 | N12: 466 | O12: 501 | P12: 536 | Q12: 571 | R12: 606 | S12: 641 | T12: 676 | U12: 711 | V12: 746 | W12: 781 | X12: 816 | Y12: 851 | Z12: 886 | AA12: 921 | AB12: 956 | AC12: 991 | AD12: 1026 | AE12: 1061 | AF12: 1096 | AG12: 1131 | AH12: 1166 | AI12: 1201 | AJ12: 1236 | AK12: 1271 | AL12: 1306 | AM12: 1341 | AN12: 1376 | AO12: 1411 | AP12: 1446 | AQ12: 1481 | AR12: 1516 | AS12: 1551 | AT12: 1586 | AU12: 1621 | AV12: 1656 | AW12: 1691 | AX12: 1726 | AY12: 1761 | AZ12: 1796 | BA12: 1831 | BB12: 1866 | BC12: 1901 | BD12: 1936 | BE12: 1971
A13: 12 | B13: =A13+35 -> 47 | C13: 82 | D13: 117 | E13: 152 | F13: 187 | G13: 222 | H13: 257 | I13: 292 | J13: 327 | K13: 362 | L13: 397 | M13: 432 | N13: 467 | O13: 502 | P13: 537 | Q13: 572 | R13: 607 | S13: 642 | T13: 677 | U13: 712 | V13: 747 | W13: 782 | X13: 817 | Y13: 852 | Z13: 887 | AA13: 922 | AB13: 957 | AC13: 992 | AD13: 1027 | AE13: 1062 | AF13: 1097 | AG13: 1132 | AH13: 1167 | AI13: 1202 | AJ13: 1237 | AK13: 1272 | AL13: 1307 | AM13: 1342 | AN13: 1377 | AO13: 1412 | AP13: 1447 | AQ13: 1482 | AR13: 1517 | AS13: 1552 | AT13: 1587 | AU13: 1622 | AV13: 1657 | AW13: 1692 | AX13: 1727 | AY13: 1762 | AZ13: 1797 | BA13: 1832 | BB13: 1867 | BC13: 1902 | BD13: 1937 | BE13: 1972
A14: 13 | B14: =A14+35 -> 48 | C14: 83 | D14: 118 | E14: 153 | F14: 188 | G14: 223 | H14: 258 | I14: 293 | J14: 328 | K14: 363 | L14: 398 | M14: 433 | N14: 468 | O14: 503 | P14: 538 | Q14: 573 | R14: 608 | S14: 643 | T14: 678 | U14: 713 | V14: 748 | W14: 783 | X14: 818 | Y14: 853 | Z14: 888 | AA14: 923 | AB14: 958 | AC14: 993 | AD14: 1028 | AE14: 1063 | AF14: 1098 | AG14: 1133 | AH14: 1168 | AI14: 1203 | AJ14: 1238 | AK14: 1273 | AL14: 1308 | AM14: 1343 | AN14: 1378 | AO14: 1413 | AP14: 1448 | AQ14: 1483 | AR14: 1518 | AS14: 1553 | AT14: 1588 | AU14: 1623 | AV14: 1658 | AW14: 1693 | AX14: 1728 | AY14: 1763 | AZ14: 1798 | BA14: 1833 | BB14: 1868 | BC14: 1903 | BD14: 1938 | BE14: 1973
A15: 14 | B15: =A15+35 -> 49 | C15: 84 | D15: 119 | E15: 154 | F15: 189 | G15: 224 | H15: 259 | I15: 294 | J15: 329 | K15: 364 | L15: 399 | M15: 434 | N15: 469 | O15: 504 | P15: 539 | Q15: 574 | R15: 609 | S15: 644 | T15: 679 | U15: 714 | V15: 749 | W15: 784 | X15: 819 | Y15: 854 | Z15: 889 | AA15: 924 | AB15: 959 | AC15: 994 | AD15: 1029 | AE15: 1064 | AF15: 1099 | AG15: 1134 | AH15: 1169 | AI15: 1204 | AJ15: 1239 | AK15: 1274 | AL15: 1309 | AM15: 1344 | AN15: 1379 | AO15: 1414 | AP15: 1449 | AQ15: 1484 | AR15: 1519 | AS15: 1554 | AT15: 1589 | AU15: 1624 | AV15: 1659 | AW15: 1694 | AX15: 1729 | AY15: 1764 | AZ15: 1799 | BA15: 1834 | BB15: 1869 | BC15: 1904 | BD15: 1939 | BE15: 1974
A16: 15 | B16: =A16+35 -> 50 | C16: 85 | D16: 120 | E16: 155 | F16: 190 | G16: 225 | H16: 260 | I16: 295 | J16: 330 | K16: 365 | L16: 400 | M16: 435 | N16: 470 | O16: 505 | P16: 540 | Q16: 575 | R16: 610 | S16: 645 | T16: 680 | U16: 715 | V16: 750 | W16: 785 | X16: 820 | Y16: 855 | Z16: 890 | AA16: 925 | AB16: 960 | AC16: 995 | AD16: 1030 | AE16: 1065 | AF16: 1100 | AG16: 1135 | AH16: 1170 | AI16: 1205 | AJ16: 1240 | AK16: 1275 | AL16: 1310 | AM16: 1345 | AN16: 1380 | AO16: 1415 | AP16: 1450 | AQ16: 1485 | AR16: 1520 | AS16: 1555 | AT16: 1590 | AU16: 1625 | AV16: 1660 | AW16: 1695 | AX16: 1730 | AY16: 1765 | AZ16: 1800 | BA16: 1835 | BB16: 1870 | BC16: 1905 | BD16: 1940 | BE16: 1975
A17: 16 | B17: =A17+35 -> 51 | C17: 86 | D17: 121 | E17: 156 | F17: 191 | G17: 226 | H17: 261 | I17: 296 | J17: 331 | K17: 366 | L17: 401 | M17: 436 | N17: 471 | O17: 506 | P17: 541 | Q17: 576 | R17: 611 | S17: 646 | T17: 681 | U17: 716 | V17: 751 | W17: 786 | X17: 821 | Y17: 856 | Z17: 891 | AA17: 926 | AB17: 961 | AC17: 996 | AD17: 1031 | AE17: 1066 | AF17: 1101 | AG17: 1136 | AH17: 1171 | AI17: 1206 | AJ17: 1241 | AK17: 1276 | AL17: 1311 | AM17: 1346 | AN17: 1381 | AO17: 1416 | AP17: 1451 | AQ17: 1486 | AR17: 1521 | AS17: 1556 | AT17: 1591 | AU17: 1626 | AV17: 1661 | AW17: 1696 | AX17: 1731 | AY17: 1766 | AZ17: 1801 | BA17: 1836 | BB17: 1871 | BC17: 1906 | BD17: 1941 | BE17: 1976
A18: 17 | B18: =A18+35 -> 52 | C18: 87 | D18: 122 | E18: 157 | F18: 192 | G18: 227 | H18: 262 | I18: 297 | J18: 332 | K18: 367 | L18: 402 | M18: 437 | N18: 472 | O18: 507 | P18: 542 | Q18: 577 | R18: 612 | S18: 647 | T18: 682 | U18: 717 | V18: 752 | W18: 787 | X18: 822 | Y18: 857 | Z18: 892 | AA18: 927 | AB18: 962 | AC18: 997 | AD18: 1032 | AE18: 1067 | AF18: 1102 | AG18: 1137 | AH18: 1172 | AI18: =AH18+35 -> 1207 | AJ18: 1242 | AK18: 1277 | AL18: 1312 | AM18: 1347 | AN18: 1382 | AO18: 1417 | AP18: 1452 | AQ18: 1487 | AR18: 1522 | AS18: 1557 | AT18: 1592 | AU18: 1627 | AV18: 1662 | AW18: =AV18+35 -> 1697 | AX18: 1732 | AY18: 1767 | AZ18: 1802 | BA18: 1837 | BB18: 1872 | BC18: 1907 | BD18: 1942 | BE18: 1977
A19: 18 | B19: =A19+35 -> 53 | C19: 88 | D19: 123 | E19: 158 | F19: 193 | G19: 228 | H19: 263 | I19: 298 | J19: 333 | K19: 368 | L19: 403 | M19: 438 | N19: 473 | O19: 508 | P19: 543 | Q19: 578 | R19: 613 | S19: 648 | T19: 683 | U19: 718 | V19: 753 | W19: 788 | X19: 823 | Y19: 858 | Z19: 893 | AA19: 928 | AB19: 963 | AC19: 998 | AD19: 1033 | AE19: 1068 | AF19: 1103 | AG19: 1138 | AH19: 1173 | AI19: 1208 | AJ19: 1243 | AK19: 1278 | AL19: 1313 | AM19: 1348 | AN19: 1383 | AO19: 1418 | AP19: 1453 | AQ19: 1488 | AR19: 1523 | AS19: 1558 | AT19: 1593 | AU19: 1628 | AV19: 1663 | AW19: 1698 | AX19: 1733 | AY19: 1768 | AZ19: 1803 | BA19: 1838 | BB19: 1873 | BC19: 1908 | BD19: 1943 | BE19: 1978
A20: 19 | B20: =A20+35 -> 54 | C20: 89 | D20: 124 | E20: 159 | F20: 194 | G20: 229 | H20: 264 | I20: 299 | J20: 334 | K20: 369 | L20: 404 | M20: 439 | N20: 474 | O20: 509 | P20: 544 | Q20: 579 | R20: 614 | S20: 649 | T20: 684 | U20: 719 | V20: 754 | W20: 789 | X20: 824 | Y20: 859 | Z20: 894 | AA20: 929 | AB20: 964 | AC20: 999 | AD20: 1034 | AE20: 1069 | AF20: 1104 | AG20: 1139 | AH20: 1174 | AI20: 1209 | AJ20: 1244 | AK20: 1279 | AL20: 1314 | AM20: 1349 | AN20: 1384 | AO20: 1419 | AP20: 1454 | AQ20: 1489 | AR20: 1524 | AS20: 1559 | AT20: 1594 | AU20: 1629 | AV20: 1664 | AW20: 1699 | AX20: 1734 | AY20: 1769 | AZ20: =AY20+35 -> 1804 | BA20: 1839 | BB20: 1874 | BC20: 1909 | BD20: 1944 | BE20: 1979
A21: 20 | B21: =A21+35 -> 55 | C21: 90 | D21: 125 | E21: 160 | F21: 195 | G21: 230 | H21: 265 | I21: 300 | J21: 335 | K21: 370 | L21: 405 | M21: 440 | N21: 475 | O21: 510 | P21: 545 | Q21: 580 | R21: 615 | S21: 650 | T21: 685 | U21: 720 | V21: 755 | W21: 790 | X21: 825 | Y21: 860 | Z21: 895 | AA21: 930 | AB21: 965 | AC21: 1000 | AD21: 1035 | AE21: 1070 | AF21: 1105 | AG21: 1140 | AH21: 1175 | AI21: 1210 | AJ21: 1245 | AK21: 1280 | AL21: 1315 | AM21: 1350 | AN21: 1385 | AO21: 1420 | AP21: 1455 | AQ21: 1490 | AR21: 1525 | AS21: 1560 | AT21: 1595 | AU21: 1630 | AV21: 1665 | AW21: 1700 | AX21: 1735 | AY21: 1770 | AZ21: 1805 | BA21: 1840 | BB21: 1875 | BC21: 1910 | BD21: 1945 | BE21: 1980
A22: 21 | B22: =A22+35 -> 56 | C22: 91 | D22: 126 | E22: 161 | F22: 196 | G22: 231 | H22: 266 | I22: 301 | J22: 336 | K22: 371 | L22: 406 | M22: 441 | N22: 476 | O22: 511 | P22: 546 | Q22: 581 | R22: 616 | S22: 651 | T22: 686 | U22: 721 | V22: 756 | W22: 791 | X22: 826 | Y22: 861 | Z22: 896 | AA22: 931 | AB22: 966 | AC22: 1001 | AD22: 1036 | AE22: 1071 | AF22: 1106 | AG22: 1141 | AH22: 1176 | AI22: 1211 | AJ22: 1246 | AK22: 1281 | AL22: 1316 | AM22: 1351 | AN22: 1386 | AO22: 1421 | AP22: 1456 | AQ22: 1491 | AR22: 1526 | AS22: 1561 | AT22: 1596 | AU22: 1631 | AV22: 1666 | AW22: 1701 | AX22: 1736 | AY22: 1771 | AZ22: 1806 | BA22: 1841 | BB22: 1876 | BC22: 1911 | BD22: 1946 | BE22: 1981
A23: 22 | B23: =A23+35 -> 57 | C23: 92 | D23: 127 | E23: 162 | F23: 197 | G23: 232 | H23: 267 | I23: 302 | J23: 337 | K23: 372 | L23: 407 | M23: 442 | N23: 477 | O23: 512 | P23: 547 | Q23: 582 | R23: 617 | S23: 652 | T23: 687 | U23: 722 | V23: 757 | W23: 792 | X23: 827 | Y23: 862 | Z23: 897 | AA23: 932 | AB23: 967 | AC23: 1002 | AD23: 1037 | AE23: 1072 | AF23: 1107 | AG23: 1142 | AH23: 1177 | AI23: 1212 | AJ23: 1247 | AK23: 1282 | AL23: 1317 | AM23: 1352 | AN23: 1387 | AO23: 1422 | AP23: 1457 | AQ23: 1492 | AR23: 1527 | AS23: 1562 | AT23: 1597 | AU23: 1632 | AV23: 1667 | AW23: 1702 | AX23: 1737 | AY23: 1772 | AZ23: 1807 | BA23: 1842 | BB23: 1877 | BC23: 1912 | BD23: 1947 | BE23: 1982
A24: 23 | B24: =A24+35 -> 58 | C24: 93 | D24: 128 | E24: 163 | F24: 198 | G24: 233 | H24: 268 | I24: 303 | J24: 338 | K24: 373 | L24: 408 | M24: 443 | N24: 478 | O24: 513 | P24: 548 | Q24: 583 | R24: 618 | S24: 653 | T24: 688 | U24: 723 | V24: 758 | W24: 793 | X24: 828 | Y24: 863 | Z24: 898 | AA24: 933 | AB24: 968 | AC24: 1003 | AD24: 1038 | AE24: 1073 | AF24: 1108 | AG24: 1143 | AH24: 1178 | AI24: 1213 | AJ24: 1248 | AK24: 1283 | AL24: 1318 | AM24: 1353 | AN24: 1388 | AO24: 1423 | AP24: 1458 | AQ24: 1493 | AR24: 1528 | AS24: 1563 | AT24: 1598 | AU24: 1633 | AV24: 1668 | AW24: 1703 | AX24: 1738 | AY24: 1773 | AZ24: 1808 | BA24: 1843 | BB24: 1878 | BC24: 1913 | BD24: 1948 | BE24: 1983
A25: 24 | B25: =A25+35 -> 59 | C25: 94 | D25: 129 | E25: 164 | F25: 199 | G25: 234 | H25: 269 | I25: 304 | J25: 339 | K25: 374 | L25: 409 | M25: 444 | N25: 479 | O25: 514 | P25: 549 | Q25: 584 | R25: 619 | S25: 654 | T25: 689 | U25: 724 | V25: 759 | W25: 794 | X25: 829 | Y25: 864 | Z25: 899 | AA25: 934 | AB25: 969 | AC25: 1004 | AD25: 1039 | AE25: 1074 | AF25: 1109 | AG25: 1144 | AH25: 1179 | AI25: 1214 | AJ25: 1249 | AK25: 1284 | AL25: 1319 | AM25: 1354 | AN25: 1389 | AO25: 1424 | AP25: 1459 | AQ25: 1494 | AR25: 1529 | AS25: 1564 | AT25: 1599 | AU25: 1634 | AV25: 1669 | AW25: 1704 | AX25: 1739 | AY25: 1774 | AZ25: 1809 | BA25: 1844 | BB25: 1879 | BC25: 1914 | BD25: 1949 | BE25: 1984
A26: 25 | B26: =A26+35 -> 60 | C26: 95 | D26: 130 | E26: 165 | F26: 200 | G26: 235 | H26: 270 | I26: 305 | J26: 340 | K26: 375 | L26: 410 | M26: 445 | N26: 480 | O26: 515 | P26: 550 | Q26: 585 | R26: 620 | S26: 655 | T26: 690 | U26: 725 | V26: 760 | W26: 795 | X26: 830 | Y26: 865 | Z26: 900 | AA26: 935 | AB26: 970 | AC26: 1005 | AD26: 1040 | AE26: 1075 | AF26: 1110 | AG26: 1145 | AH26: 1180 | AI26: 1215 | AJ26: 1250 | AK26: 1285 | AL26: 1320 | AM26: 1355 | AN26: 1390 | AO26: 1425 | AP26: 1460 | AQ26: 1495 | AR26: 1530 | AS26: 1565 | AT26: 1600 | AU26: 1635 | AV26: =AU26+35 -> 1670 | AW26: 1705 | AX26: 1740 | AY26: 1775 | AZ26: 1810 | BA26: 1845 | BB26: 1880 | BC26: 1915 | BD26: 1950 | BE26: 1985
A27: 26 | B27: =A27+35 -> 61 | C27: 96 | D27: 131 | E27: 166 | F27: 201 | G27: 236 | H27: 271 | I27: 306 | J27: 341 | K27: 376 | L27: 411 | M27: 446 | N27: 481 | O27: 516 | P27: 551 | Q27: 586 | R27: 621 | S27: 656 | T27: 691 | U27: 726 | V27: 761 | W27: 796 | X27: 831 | Y27: 866 | Z27: 901 | AA27: 936 | AB27: 971 | AC27: 1006 | AD27: 1041 | AE27: 1076 | AF27: 1111 | AG27: 1146 | AH27: 1181 | AI27: 1216 | AJ27: 1251 | AK27: 1286 | AL27: 1321 | AM27: 1356 | AN27: 1391 | AO27: 1426 | AP27: 1461 | AQ27: 1496 | AR27: 1531 | AS27: 1566 | AT27: 1601 | AU27: 1636 | AV27: 1671 | AW27: 1706 | AX27: 1741 | AY27: 1776 | AZ27: 1811 | BA27: 1846 | BB27: 1881 | BC27: 1916 | BD27: 1951 | BE27: 1986
A28: 27 | B28: =A28+35 -> 62 | C28: 97 | D28: 132 | E28: 167 | F28: 202 | G28: 237 | H28: 272 | I28: 307 | J28: 342 | K28: 377 | L28: 412 | M28: 447 | N28: 482 | O28: 517 | P28: 552 | Q28: 587 | R28: 622 | S28: 657 | T28: 692 | U28: 727 | V28: 762 | W28: 797 | X28: 832 | Y28: 867 | Z28: 902 | AA28: 937 | AB28: 972 | AC28: 1007 | AD28: 1042 | AE28: 1077 | AF28: 1112 | AG28: 1147 | AH28: 1182 | AI28: 1217 | AJ28: 1252 | AK28: 1287 | AL28: 1322 | AM28: 1357 | AN28: 1392 | AO28: 1427 | AP28: 1462 | AQ28: 1497 | AR28: 1532 | AS28: 1567 | AT28: 1602 | AU28: 1637 | AV28: 1672 | AW28: 1707 | AX28: 1742 | AY28: 1777 | AZ28: 1812 | BA28: 1847 | BB28: 1882 | BC28: 1917 | BD28: 1952 | BE28: 1987
A29: 28 | B29: =A29+35 -> 63 | C29: 98 | D29: 133 | E29: 168 | F29: 203 | G29: 238 | H29: 273 | I29: 308 | J29: 343 | K29: 378 | L29: 413 | M29: 448 | N29: 483 | O29: 518 | P29: 553 | Q29: 588 | R29: 623 | S29: 658 | T29: 693 | U29: 728 | V29: 763 | W29: 798 | X29: 833 | Y29: 868 | Z29: 903 | AA29: 938 | AB29: 973 | AC29: 1008 | AD29: 1043 | AE29: 1078 | AF29: 1113 | AG29: 1148 | AH29: 1183 | AI29: 1218 | AJ29: 1253 | AK29: 1288 | AL29: 1323 | AM29: 1358 | AN29: 1393 | AO29: 1428 | AP29: 1463 | AQ29: 1498 | AR29: 1533 | AS29: 1568 | AT29: 1603 | AU29: 1638 | AV29: 1673 | AW29: 1708 | AX29: 1743 | AY29: 1778 | AZ29: 1813 | BA29: 1848 | BB29: 1883 | BC29: 1918 | BD29: 1953 | BE29: 1988
A30: 29 | B30: =A30+35 -> 64 | C30: 99 | D30: 134 | E30: 169 | F30: 204 | G30: 239 | H30: 274 | I30: 309 | J30: 344 | K30: 379 | L30: 414 | M30: 449 | N30: 484 | O30: 519 | P30: 554 | Q30: 589 | R30: 624 | S30: 659 | T30: 694 | U30: 729 | V30: 764 | W30: 799 | X30: 834 | Y30: 869 | Z30: 904 | AA30: 939 | AB30: 974 | AC30: 1009 | AD30: 1044 | AE30: 1079 | AF30: 1114 | AG30: 1149 | AH30: 1184 | AI30: 1219 | AJ30: 1254 | AK30: 1289 | AL30: 1324 | AM30: 1359 | AN30: 1394 | AO30: 1429 | AP30: 1464 | AQ30: 1499 | AR30: 1534 | AS30: 1569 | AT30: 1604 | AU30: 1639 | AV30: 1674 | AW30: 1709 | AX30: 1744 | AY30: 1779 | AZ30: 1814 | BA30: 1849 | BB30: 1884 | BC30: 1919 | BD30: 1954 | BE30: 1989
A31: 30 | B31: =A31+35 -> 65 | C31: 100 | D31: 135 | E31: 170 | F31: 205 | G31: 240 | H31: 275 | I31: 310 | J31: 345 | K31: 380 | L31: 415 | M31: 450 | N31: 485 | O31: 520 | P31: 555 | Q31: 590 | R31: 625 | S31: 660 | T31: 695 | U31: 730 | V31: 765 | W31: 800 | X31: 835 | Y31: 870 | Z31: 905 | AA31: 940 | AB31: 975 | AC31: 1010 | AD31: 1045 | AE31: 1080 | AF31: 1115 | AG31: 1150 | AH31: 1185 | AI31: 1220 | AJ31: 1255 | AK31: 1290 | AL31: 1325 | AM31: 1360 | AN31: 1395 | AO31: 1430 | AP31: 1465 | AQ31: 1500 | AR31: 1535 | AS31: 1570 | AT31: 1605 | AU31: 1640 | AV31: 1675 | AW31: 1710 | AX31: 1745 | AY31: 1780 | AZ31: 1815 | BA31: 1850 | BB31: 1885 | BC31: 1920 | BD31: 1955 | BE31: 1990
A32: 31 | B32: =A32+35 -> 66 | C32: 101 | D32: 136 | E32: 171 | F32: 206 | G32: 241 | H32: 276 | I32: 311 | J32: 346 | K32: 381 | L32: 416 | M32: 451 | N32: 486 | O32: 521 | P32: 556 | Q32: 591 | R32: 626 | S32: 661 | T32: 696 | U32: 731 | V32: 766 | W32: 801 | X32: 836 | Y32: 871 | Z32: 906 | AA32: 941 | AB32: 976 | AC32: 1011 | AD32: 1046 | AE32: 1081 | AF32: 1116 | AG32: 1151 | AH32: 1186 | AI32: 1221 | AJ32: 1256 | AK32: 1291 | AL32: 1326 | AM32: 1361 | AN32: 1396 | AO32: 1431 | AP32: 1466 | AQ32: 1501 | AR32: 1536 | AS32: 1571 | AT32: 1606 | AU32: 1641 | AV32: 1676 | AW32: 1711 | AX32: 1746 | AY32: 1781 | AZ32: 1816 | BA32: 1851 | BB32: 1886 | BC32: 1921 | BD32: 1956 | BE32: 1991
A33: 32 | B33: =A33+35 -> 67 | C33: 102 | D33: 137 | E33: 172 | F33: 207 | G33: 242 | H33: 277 | I33: 312 | J33: 347 | K33: 382 | L33: 417 | M33: 452 | N33: 487 | O33: 522 | P33: 557 | Q33: 592 | R33: 627 | S33: 662 | T33: 697 | U33: 732 | V33: 767 | W33: 802 | X33: 837 | Y33: 872 | Z33: 907 | AA33: 942 | AB33: 977 | AC33: 1012 | AD33: 1047 | AE33: 1082 | AF33: 1117 | AG33: 1152 | AH33: 1187 | AI33: 1222 | AJ33: 1257 | AK33: 1292 | AL33: 1327 | AM33: 1362 | AN33: 1397 | AO33: 1432 | AP33: 1467 | AQ33: 1502 | AR33: 1537 | AS33: 1572 | AT33: 1607 | AU33: 1642 | AV33: 1677 | AW33: 1712 | AX33: 1747 | AY33: 1782 | AZ33: 1817 | BA33: 1852 | BB33: 1887 | BC33: 1922 | BD33: 1957 | BE33: 1992
A34: 33 | B34: =A34+35 -> 68 | C34: 103 | D34: 138 | E34: 173 | F34: 208 | G34: 243 | H34: 278 | I34: 313 | J34: 348 | K34: 383 | L34: 418 | M34: 453 | N34: 488 | O34: 523 | P34: 558 | Q34: 593 | R34: 628 | S34: 663 | T34: 698 | U34: 733 | V34: 768 | W34: 803 | X34: 838 | Y34: 873 | Z34: 908 | AA34: 943 | AB34: 978 | AC34: 1013 | AD34: 1048 | AE34: 1083 | AF34: 1118 | AG34: 1153 | AH34: 1188 | AI34: 1223 | AJ34: 1258 | AK34: 1293 | AL34: 1328 | AM34: 1363 | AN34: 1398 | AO34: 1433 | AP34: 1468 | AQ34: 1503 | AR34: 1538 | AS34: 1573 | AT34: 1608 | AU34: 1643 | AV34: 1678 | AW34: 1713 | AX34: 1748 | AY34: 1783 | AZ34: 1818 | BA34: 1853 | BB34: 1888 | BC34: 1923 | BD34: 1958 | BE34: 1993
A35: 34 | B35: =A35+35 -> 69 | C35: 104 | D35: 139 | E35: 174 | F35: 209 | G35: 244 | H35: 279 | I35: 314 | J35: 349 | K35: 384 | L35: 419 | M35: 454 | N35: 489 | O35: 524 | P35: 559 | Q35: 594 | R35: 629 | S35: 664 | T35: 699 | U35: 734 | V35: 769 | W35: 804 | X35: 839 | Y35: 874 | Z35: 909 | AA35: 944 | AB35: 979 | AC35: 1014 | AD35: 1049 | AE35: 1084 | AF35: 1119 | AG35: 1154 | AH35: 1189 | AI35: 1224 | AJ35: 1259 | AK35: 1294 | AL35: 1329 | AM35: 1364 | AN35: 1399 | AO35: 1434 | AP35: 1469 | AQ35: 1504 | AR35: 1539 | AS35: 1574 | AT35: 1609 | AU35: 1644 | AV35: 1679 | AW35: 1714 | AX35: 1749 | AY35: 1784 | AZ35: 1819 | BA35: 1854 | BB35: 1889 | BC35: 1924 | BD35: 1959 | BE35: 1994
A36: 35 | B36: =A36+35 -> 70 | C36: 105 | D36: 140 | E36: 175 | F36: 210 | G36: 245 | H36: 280 | I36: 315 | J36: 350 | K36: 385 | L36: 420 | M36: 455 | N36: 490 | O36: 525 | P36: 560 | Q36: 595 | R36: 630 | S36: 665 | T36: 700 | U36: 735 | V36: 770 | W36: 805 | X36: 840 | Y36: 875 | Z36: 910 | AA36: 945 | AB36: 980 | AC36: 1015 | AD36: 1050 | AE36: 1085 | AF36: 1120 | AG36: 1155 | AH36: 1190 | AI36: 1225 | AJ36: 1260 | AK36: 1295 | AL36: 1330 | AM36: 1365 | AN36: 1400 | AO36: 1435 | AP36: 1470 | AQ36: 1505 | AR36: 1540 | AS36: 1575 | AT36: 1610 | AU36: 1645 | AV36: 1680 | AW36: 1715 | AX36: 1750 | AY36: 1785 | AZ36: 1820 | BA36: 1855 | BB36: 1890 | BC36: 1925 | BD36: 1960 | BE36: 1995
A38: NR: | B38: NR: | C38: NR: | D38: NR: | E38: NR: | F38: NR: | G38: NR: | H38: NR: | I38: NR: | J38: NR: | K38: NR: | L38: NR: | M38: NR: | N38: NR: | O38: NR: | P38: NR: | Q38: NR: | R38: NR: | S38: NR: | T38: NR: | U38: NR: | V38: NR: | W38: NR: | X38: NR: | Y38: NR: | Z38: NR: | AA38: NR: | AB38: NR: | AC38: NR: | AD38: NR: | AE38: NR: | AF38: NR: | AG38: NR: | AH38: NR: | AI38: NR: | AJ38: NR: | AK38: NR: | AL38: NR: | AM38: NR: | AN38: NR: | AO38: NR: | AP38: NR: | AQ38: NR: | AR38: NR: | AS38: NR: | AT38: NR: | AU38: NR: | AV38: NR: | AW38: NR: | AX38: NR: | AY38: NR: | AZ38: NR: | BA38: NR: | BB38: NR: | BC38: NR: | BD38: NR: | BE38: NR:
A39: 1996 | B39: =A39+35 -> 2031 | C39: =B39+35 -> 2066 | D39: =C39+35 -> 2101 | E39: =D39+35 -> 2136 | F39: =E39+35 -> 2171 | G39: =F39+35 -> 2206 | H39: 2241 | I39: 2276 | J39: 2311 | K39: 2346 | L39: 2381 | M39: 2416 | N39: 2451 | O39: 2486 | P39: 2521 | Q39: 2556 | R39: 2591 | S39: 2626 | T39: 2661 | U39: 2696 | V39: 2731 | W39: 2766 | X39: 2801 | Y39: 2836 | Z39: 2871 | AA39: 2906 | AB39: 2941 | AC39: 2976 | AD39: 3011 | AE39: 3046 | AF39: 3081 | AG39: 3116 | AH39: 3151 | AI39: 3186 | AJ39: 3221 | AK39: 3256 | AL39: 3291 | AM39: 3326 | AN39: 3361 | AO39: 3396 | AP39: 3431 | AQ39: 3466 | AR39: 3501 | AS39: 3536 | AT39: 3571 | AU39: 3606 | AV39: 3641 | AW39: 3676 | AX39: 3711 | AY39: 3746 | AZ39: 3781 | BA39: 3816 | BB39: 3851 | BC39: 3886 | BD39: 3921 | BE39: 3956
A40: 1997 | B40: =A40+35 -> 2032 | C40: 2067 | D40: 2102 | E40: 2137 | F40: 2172
A41: 1998 | B41: 2033 | C41: 2068 | D41: 2103 | E41: 2138 | F41: 2173
A42: 1999 | B42: 2034 | C42: 2069 | D42: 2104 | E42: 2139 | F42: 2174
A43: 2000 | B43: 2035 | C43: 2070 | D43: 2105 | E43: 2140 | F43: 2175
A44: 2001 | B44: 2036 | C44: 2071 | D44: 2106 | E44: 2141 | F44: 2176
A45: 2002 | B45: 2037 | C45: 2072 | D45: 2107 | E45: 2142 | F45: 2177
A46: 2003 | B46: 2038 | C46: 2073 | D46: 2108 | E46: 2143 | F46: 2178
A47: 2004 | B47: 2039 | C47: 2074 | D47: 2109 | E47: 2144 | F47: 2179
A48: 2005 | B48: 2040 | C48: 2075 | D48: 2110 | E48: 2145 | F48: 2180
A49: 2006 | B49: 2041 | C49: 2076 | D49: 2111 | E49: 2146 | F49: 2181
A50: 2007 | B50: 2042 | C50: 2077 | D50: 2112 | E50: 2147 | F50: 2182
A51: 2008 | B51: 2043 | C51: 2078 | D51: 2113 | E51: 2148 | F51: 2183
A52: 2009 | B52: 2044 | C52: 2079 | D52: 2114 | E52: 2149 | F52: 2184
A53: 2010 | B53: 2045 | C53: 2080 | D53: 2115 | E53: 2150 | F53: 2185
A54: 2011 | B54: 2046 | C54: 2081 | D54: 2116 | E54: 2151 | F54: 2186
A55: 2012 | B55: 2047 | C55: 2082 | D55: 2117 | E55: 2152 | F55: 2187
A56: 2013 | B56: 2048 | C56: 2083 | D56: 2118 | E56: 2153 | F56: 2188
A57: 2014 | B57: 2049 | C57: 2084 | D57: 2119 | E57: 2154 | F57: 2189
A58: 2015 | B58: 2050 | C58: 2085 | D58: 2120 | E58: 2155 | F58: 2190
A59: 2016 | B59: 2051 | C59: 2086 | D59: 2121 | E59: 2156 | F59: 2191
A60: 2017 | B60: 2052 | C60: 2087 | D60: 2122 | E60: 2157 | F60: 2192
A61: 2018 | B61: 2053 | C61: 2088 | D61: 2123 | E61: 2158 | F61: 2193
A62: 2019 | B62: 2054 | C62: 2089 | D62: 2124 | E62: 2159 | F62: 2194
A63: 2020 | B63: 2055 | C63: 2090 | D63: 2125 | E63: 2160 | F63: 2195
A64: 2021 | B64: 2056 | C64: 2091 | D64: 2126 | E64: 2161 | F64: 2196
A65: 2022 | B65: 2057 | C65: 2092 | D65: 2127 | E65: 2162 | F65: 2197
A66: 2023 | B66: 2058 | C66: 2093 | D66: 2128 | E66: 2163 | F66: 2198
A67: 2024 | B67: 2059 | C67: 2094 | D67: 2129 | E67: 2164 | F67: 2199
A68: 2025 | B68: 2060 | C68: 2095 | D68: 2130 | E68: 2165 | F68: 2200
A69: 2026 | B69: 2061 | C69: 2096 | D69: 2131 | E69: 2166 | F69: 2201
A70: 2027 | B70: 2062 | C70: 2097 | D70: 2132 | E70: 2167 | F70: 2202
A71: 2028 | B71: 2063 | C71: 2098 | D71: 2133 | E71: 2168 | F71: 2203
A72: 2029 | B72: 2064 | C72: 2099 | D72: 2134 | E72: 2169 | F72: 2204
A73: 2030 | B73: 2065 | C73: 2100 | D73: 2135 | E73: 2170 | F73: 2205

Sheet Opgaven
B1: Opgave: | C1: 1 | D1: Star Wars
B3: 1 | C3: 2 | D3: 3 | E3: 4 | F3: 5 | G3: 6 | H3: 7 | I3: 8 | J3: 9 | K3: 10 | L3: 11
A4: 1 | B4: R | C4: D | D4: I | E4: O | F4: R | G4: D | H4: R | I4: E | J4: W | K4: O | L4: P
A5: 2 | B5: E | C5: P | D5: T | E5: E | F5: W | G5: G | H5: E | I5: V | J5: A | K5: A | L5: R
A6: 3 | B6: P | C6: O | D6: R | E6: I | F6: R | G6: E | H6: T | I6: H | J6: G | K6: I | L6: F
A7: 4 | B7: P | C7: E | D7: A | E7: T | F7: P | G7: S | H7: N | I7: E | J7: I | K7: L | L7: A
A8: 5 | B8: O | C8: D | D8: I | E8: M | F8: H | G8: A | H8: Y | I8: L | J8: Y | K8: P | L8: P
A9: 6 | B9: H | C9: A | D9: N | E9: O | F9: E | G9: O | H9: D | I9: R | J9: A | K9: L | L9: D
A10: 7 | B10: Y | C10: M | D10: E | E10: T | F10: B | G10: H | H10: U | I10: M | J10: O | K10: R | L10: R
A11: 8 | B11: K | C11: E | D11: N | E11: N | F11: Y | G11: B | H11: A | I11: K | J11: E | K11: R | L11: S
A12: 9 | B12: S | C12: R | D12: H | E12: A | F12: E | G12: D | H12: O | I12: S | J12: I | K12: P | L12: E
A13: 10 | B13: I | C13: O | D13: V | E13: H | F13: Z | G13: O | H13: K | I13: N | J13: A | K13: R | L13: F
A14: 11 | B14: J | C14: N | D14: E | E14: P | F14: N | G14: E | H14: R | I14: O | J14: L | K14: Y | L14: K
B16: ALIENS | E16: HUMOR | H16: PADME | K16: SKYHOPPER
B17: EPISODE | E17: JOHN BOYEGA | H17: PHANTOM TIE | K17: TRAINEN
B18: FIGHTER | E18: KENNY BAKER | H18: PLO KOON
B19: FRANK OZ | E19: KYLO REN | H19: POE DAMERON
B20: GEVAAR | E20: OWEN LARS | H20: POWER DROID
B22: Opgave: | C22: 2 | D22: Pablo Picasso
B24: 1 | C24: 2 | D24: 3 | E24: 4 | F24: 5 | G24: 6 | H24: 7 | I24: 8 | J24: 9 | K24: 10 | L24: 11
A25: 1 | B25: N | C25: E | D25: T | E25: T | F25: E | G25: R | H25: T | I25: R | J25: O | K25: P | L25: C
A26: 2 | B26: P | C26: N | D26: G | E26: E | F26: I | G26: N | H26: E | I26: G | J26: O | K26: M | L26: P
A27: 3 | B27: U | C27: W | D27: E | E27: R | F27: E | G27: L | H27: D | I27: R | J27: A | K27: M | L27: P
A28: 4 | B28: O | C28: K | D28: E | E28: G | F28: O | G28: E | H28: U | I28: V | J28: R | K28: E | L28: P
A29: 5 | B29: L | C29: E | D29: S | E29: S | F29: N | G29: U | H29: E | I29: T | J29: S | K29: A | L29: O
A30: 6 | B30: E | C30: I | D30: T | E30: A | F30: R | G30: I | H30: P | I30: S | J30: N | K30: I | L30: S
A31: 7 | B31: G | C31: M | D31: D | E31: L | F31: V | G31: E | H31: N | I31: F | J31: A | K31: C | L31: E
A32: 8 | B32: S | C32: A | D32: R | E32: IJ | F32: G | G32: A | H32: L | I32: E | J32: R | K32: I | L32: E
A33: 9 | B33: I | C33: R | D33: I | E33: T | F33: I | G33: U | H33: Z | I33: T | J33: K | K33: I | L33: E
A34: 10 | B34: O | C34: E | D34: F | E34: S | F34: I | G34: G | H34: N | I34: E | J34: R | K34: E | L34: N
A35: 11 | B35: B | C35: K | D35: T | E35: T | F35: E | G35: N | H35: D | I35: E | J35: N | K35: S | L35: T
B37: BOISGELOUP | E37: INSPIRATIE | H37: SIGNEREN | K37: TENDENS
B38: EN FACE | E38: KERAMIEK | H38: SOLER | K38: VAZEN
B39: GALERIE | E39: OEUVRE | H39: STEUN | K39: WERELDRAMP
B40: GEESTDRIFT | E40: PANFLUIT | H40: STIJL
B41: GENIE | E41: PORTRETTEN | H41: TEKENINGEN
B43: Opgave: | C43: 3 | D43: Parachutisten
B45: 1 | C45: 2 | D45: 3 | E45: 4 | F45: 5 | G45: 6 | H45: 7 | I45: 8 | J45: 9 | K45: 10 | L45: 11
A46: 1 | B46: V | C46: S | D46: T | E46: U | F46: U | G46: R | H46: L | I46: IJ | J46: N | K46: E | L46: N
A47: 2 | B47: E | C47: T | D47: H | E47: E | F47: O | G47: R | H47: I | I47: E | J47: I | K47: N | L47: V
A48: 3 | B48: R | C48: N | D48: C | E48: G | F48: N | G48: I | H48: R | I48: A | J48: V | K48: R | L48: E
A49: 4 | B49: G | C49: N | D49: I | E49: T | F49: S | G49: U | H49: R | I49: T | J49: I | K49: U | L49: I
A50: 5 | B50: U | C50: F | D50: R | E50: L | F50: U | G50: C | H50: H | I50: T | J50: I | K50: N | L50: L
A51: 6 | B51: N | C51: D | D51: R | E51: A | F51: A | G51: G | H51: S | I51: T | J51: E | K51: L | L51: I
A52: 7 | B52: N | C52: U | D52: E | E52: E | F52: B | G52: N | H52: Z | I52: N | J52: A | K52: S | L52: G
A53: 8 | B53: I | C53: R | D53: D | E53: A | F53: E | G53: I | H53: E | I53: R | J53: A | K53: T | L53: H
A54: 9 | B54: N | C54: V | D54: N | E54: R | F54: C | G54: F | H54: E | I54: R | J54: R | K54: U | L54: E
A55: 10 | B55: G | C55: E | D55: O | E55: H | F55: E | G55: V | H55: L | I55: C | J55: D | K55: T | L55: I
A56: 11 | B56: N | C56: N | D56: T | E56: O | F56: O | G56: I | H56: E | I56: Y | J56: E | K56: A | L56: D
B58: AARDE | E58: ERVARING | H58: OVERALL | K58: VEILIGHEID
B59: ADRENALINE | E59: FREELY | H59: STUURLIJNEN | K59: VERGUNNING
B60: BANEN | E60: LUCHT | H60: THEORIE
B61: DRAAGSTEL | E61: OEFENEN | H61: UITRUSTING
B62: DURVEN | E62: ONDERRICHT | H62: UITZICHT
B64: Opgave: | C64: 4 | D64: Paleizen en kastelen
B66: 1 | C66: 2 | D66: 3 | E66: 4 | F66: 5 | G66: 6 | H66: 7 | I66: 8 | J66: 9 | K66: 10 | L66: 11
A67: 1 | B67: F | C67: A | D67: A | E67: X | F67: E | G67: L | H67: W | I67: A | J67: L | K67: L | L67: E
A68: 2 | B68: C | C68: O | D68: R | E68: T | F68: E | G68: N | H68: B | I68: A | J68: C | K68: H | L68: L
A69: 3 | B69: N | C69: N | D69: H | E69: G | F69: S | G69: E | H69: N | I69: E | J69: F | K69: F | L69: E
A70: 4 | B70: O | C70: E | D70: W | E70: S | F70: E | G70: U | H70: C | I70: O | J70: O | K70: E | L70: S
A71: 5 | B71: N | C71: P | D71: E | E71: A | F71: K | G71: N | H71: U | I71: N | J71: R | K71: N | L71: C
A72: 6 | B72: G | C72: R | D72: I | E72: T | F72: W | G72: C | H72: T | I72: B | J72: T | K72: I | L72: O
A73: 7 | B73: I | C73: E | D73: M | E73: E | F73: S | G73: E | H73: R | I73: E | J73: O | K73: U | L73: R
A74: 8 | B74: V | C74: W | D74: A | E74: W | F74: I | G74: T | H74: L | I74: E | J74: U | K74: R | L74: I
A75: 9 | B75: A | C75: T | D75: R | E75: N | F75: E | G75: N | H75: E | I75: W | J75: T | K75: I | L75: A
A76: 10 | B76: N | C76: N | D76: U | E76: R | F76: B | G76: N | H76: O | I76: H | J76: C | K76: S | L76: L
A77: 11 | B77: P | C77: A | D77: V | E77: L | F77: O | G77: S | H77: K | I77: A | J77: L | K77: L | L77: E
B79: ANTWERPEN | E79: ELESCORIAL | H79: RUINE | K79: WEIMAR
B80: ARGENTEUIL | E80: FONTEIN | H80: SCHONBRUNN | K80: WENEN
B81: AVIGNON | E81: HET STEEN | H81: SENEFFE
B82: AXELWALLE | E82: PAVLOSK | H82: STERCKSHOF
B83: CORTENBACH | E83: ROBUUST | H83: WAWEL
B85: Opgave: | C85: 5 | D85: Verandering
B87: 1 | C87: 2 | D87: 3 | E87: 4 | F87: 5 | G87: 6 | H87: 7 | I87: 8 | J87: 9 | K87: 10 | L87: 11
A88: 1 | B88: K | C88: S | D88: E | E88: C | F88: O | G88: R | H88: P | I88: I | J88: R | K88: E | L88: O
A89: 2 | B89: S | C89: V | D89: I | E89: R | F89: D | G89: E | H89: IJ | I89: U | J89: O | K89: M | L89: R
A90: 3 | B90: U | C90: E | D90: S | E90: E | F90: A | G90: N | H90: I | I90: P | J90: K | K90: O | L90: M
A91: 4 | B91: B | C91: R | D91: S | E91: E | F91: R | G91: L | H91: E | I91: E | J91: I | K91: U | L91: D
A92: 5 | B92: S | C92: V | D92: E | E92: R | F92: W | G92: O | H92: R | I92: D | J92: I | K92: N | L92: G
A93: 6 | B93: I | C93: O | D93: R | E93: E | F93: I | G93: I | H93: M | I93: D | J93: R | K93: P | L93: G
A94: 7 | B94: D | C94: R | D94: G | E94: N | F94: N | G94: L | H94: A | I94: S | J94: R | K94: O | L94: A
A95: 8 | B95: I | C95: M | D95: O | E95: G | F95: I | G95: T | H95: A | I95: E | J95: L | K95: T | L95: W
A96: 9 | B96: A | C96: E | D96: R | E96: S | F96: S | G96: L | H96: E | I96: K | J96: N | K96: A | L96: W
A97: 10 | B97: I | C97: N | D97: P | E97: O | F97: M | G97: K | H97: E | I97: R | J97: E | K97: N | L97: G
A98: 11 | B98: R | C98: N | D98: E | E98: I | F98: E | G98: O | H98: L | I98: B | J98: R | K98: E | L98: H
B100: CREEREN | E100: OMKEREN | H100: RUIL | K100: VERWONDING
B101: DARWINISME | E101: OMKERING | H101: RIJPING | K101: WANKEL
B102: DOOI | E102: OMSLAG | H102: STADIUM | K102: WORDEN
B103: HERBLOEIEN | E103: PROCES | H103: SUBSIDIAIR
B104: KEER | E104: PROGRESSIE | H104: VERVORMEN
B106: Opgave: | C106: 6 | D106: Beren
B108: 1 | C108: 2 | D108: 3 | E108: 4 | F108: 5 | G108: 6 | H108: 7 | I108: 8 | J108: 9 | K108: 10 | L108: 11
A109: 1 | B109: N | C109: E | D109: R | E109: E | F109: I | G109: D | H109: G | I109: O | J109: O | K109: Z | L109: F
A110: 2 | B110: E | C110: E | D110: N | E110: S | F110: C | G110: I | H110: Z | I110: H | J110: V | K110: B | L110: E
A111: 3 | B111: R | C111: H | D111: P | E111: E | F111: L | G111: R | H111: W | I111: E | J111: I | K111: A | L111: I
A112: 4 | B112: E | C112: P | D112: O | E112: L | F112: N | G112: U | H112: A | I112: R | J112: E | K112: M | L112: S
A113: 5 | B113: C | C113: K | D113: O | E113: L | F113: E | G113: IJ | H113: R | I113: A | J113: R | K113: B | L113: S
A114: 6 | B114: N | C114: W | D114: I | E114: T | F114: E | G114: W | H114: T | I114: E | J114: V | K114: O | L114: E
A115: 7 | B115: A | C115: L | D115: L | E115: E | F115: E | G115: N | H115: E | I115: S | J115: O | K115: E | L115: R
A116: 8 | B116: L | C116: I | D116: P | E116: P | F116: E | G116: N | H116: B | I116: E | J116: E | K116: R | L116: G
A117: 9 | B117: A | C117: A | D117: N | E117: V | F117: A | G117: L | H117: E | I117: E | J117: T | K117: O | L117: A
A118: 10 | B118: B | C118: T | D118: E | E118: R | F118: M | G118: I | H118: E | I118: T | J118: E | K118: N | L118: W
A119: 11 | B119: D | C119: IJ | D119: T | E119: G | F119: A | G119: A | H119: R | I119: D | J119: R | K119: R | L119: S
B121: AANVAL | E121: DRAAGTIJD | H121: TERMIETEN | K121: ZOOGDIEREN
B122: AGRESSIEF | E122: GEVAAR | H122: VIERVOETER | K122: ZWARTE BEER
B123: ALLEEN | E123: HOLENBEER | H123: WELPEN
B124: BALANCEREN | E124: LIPPENBEER | H124: WOESTIJNEN
B125: BAMBOE | E125: POTEN | H125: WOLLIG
B128: Opgave: | C128: 7 | D128: Aerobics
B130: 1 | C130: 2 | D130: 3 | E130: 4 | F130: 5 | G130: 6 | H130: 7 | I130: 8 | J130: 9 | K130: 10 | L130: 11
A131: 1 | B131: G | C131: G | D131: H | E131: O | F131: E | G131: O | H131: F | I131: R | J131: Z | K131: N | L131: S
A132: 2 | B132: N | C132: F | D132: N | E132: M | F132: B | G132: E | H132: I | I132: U | J132: E | K132: S | L132: P
A133: 3 | B133: I | C133: H | D133: T | E133: I | F133: I | G133: A | H133: U | I133: N | J133: S | K133: T | L133: I
A134: 4 | B134: M | C134: I | D134: E | E134: T | F134: L | G134: R | H134: N | I134: E | J134: N | K134: A | L134: E
A135: 5 | B135: R | C135: D | D135: C | E135: U | F135: S | G135: A | H135: N | I135: D | J135: A | K135: A | L135: R
A136: 6 | B136: A | C136: A | D136: P | E136: T | F136: P | G136: T | H136: H | I136: W | J136: D | K136: L | L136: M
A137: 7 | B137: W | C137: O | D137: O | E137: S | F137: I | G137: E | H137: Z | I137: M | J137: O | K137: P | L137: A
A138: 8 | B138: P | C138: F | D138: T | E138: F | F138: E | G138: M | H138: N | I138: R | J138: E | K138: E | L138: S
A139: 9 | B139: O | C139: N | D139: D | E139: E | F139: R | G139: G | H139: R | I139: O | J139: N | K139: D | L139: S
A140: 10 | B140: O | C140: A | D140: A | E140: A | F140: E | G140: P | H140: A | I140: H | J140: S | K140: P | L140: A
A141: 11 | B141: S | C141: R | D141: E | E141: N | F141: N | G141: I | H141: G | I141: E | J141: B | K141: O | L141: I
B143: ACTIEF | E143: FITNESS | H143: OP DE PLAATS | K143: SPIERMASSA
B144: ADEMHALING | E144: HEUPEN | H144: OPWARMING | K144: ZUURSTOF
B145: ARMZWAAI | E145: NADOEN | H145: POPULAIR
B146: BEGINNERS | E146: ONDERGROND | H146: RITME
B147: BESPIEREN | E147: ONTSPANNEN | H147: SHAPE
B150: Opgave: | C150: 8 | D150: Orde of wanorde
B152: 1 | C152: 2 | D152: 3 | E152: 4 | F152: 5 | G152: 6 | H152: 7 | I152: 8 | J152: 9 | K152: 10 | L152: 11
A153: 1 | B153: S | C153: O | D153: O | E153: L | F153: E | G153: D | H153: R | I153: O | J153: E | K153: R | L153: G
A154: 2 | B154: O | C154: C | D154: O | E154: N | F154: C | G154: O | H154: R | I154: D | J154: A | K154: N | L154: T
A155: 3 | B155: V | C155: P | D155: O | E155: P | F155: N | G155: V | H155: R | I155: R | J155: I | K155: A | L155: P
A156: 4 | B156: R | C156: D | D156: P | E156: E | F156: S | G156: O | H156: I | I156: K | J156: R | K156: U | L156: N
A157: 5 | B157: E | C157: R | D157: Z | E157: O | F157: N | G157: T | H157: IJ | I157: H | J157: N | K157: W | L157: A
A158: 6 | B158: D | C158: O | D158: O | E158: A | F158: E | G158: W | H158: A | I158: C | J158: E | K158: K | L158: A
A159: 7 | B159: D | C159: O | D159: W | E159: I | F159: F | G159: T | H159: T | I159: N | J159: R | K159: E | L159: D
A160: 8 | B160: O | C160: K | D160: T | E160: A | F160: G | G160: U | H160: S | I160: D | J160: D | K160: U | L160: L
A161: 9 | B161: L | C161: K | D161: IJ | E161: L | F161: E | G161: T | H161: N | I161: E | J161: D | K161: R | L161: O
A162: 10 | B162: S | C162: A | D162: G | E162: E | F162: D | G162: E | H162: G | I162: E | J162: N | K162: I | L162: O
A163: 11 | B163: A | C163: L | D163: L | E163: E | F163: D | G163: A | H163: A | I163: G | J163: S | K163: G | L163: S
B165: AFWIJKING | E165: HEEL | H165: ORDELOOS | K165: WANORDE
B166: AKKOORD | E166: NAADLOOS | H166: ORDENTELIJK
B167: ALLEDAAGS | E167: NAUWKEURIG | H167: PUNCTUEEL
B168: CONCORDANT | E168: OPPOETSEN | H168: RARITEIT
B169: GEDEGEN | E169: OPSTAND | H169: SLODDERVOS
B172: Opgave: | C172: 9 | D172: Druiven
B174: 1 | C174: 2 | D174: 3 | E174: 4 | F174: 5 | G174: 6 | H174: 7 | I174: 8 | J174: 9 | K174: 10 | L174: 11
A175: 1 | B175: D | C175: W | D175: IJ | E175: N | F175: P | G175: E | H175: R | I175: S | J175: O | K175: P | L175: A
A176: 2 | B176: N | C176: IJ | D176: H | E176: C | F176: S | G176: E | H176: N | I176: N | J176: O | K176: Z | L176: R
A177: 3 | B177: E | C177: A | D177: X | E177: U | F177: A | G177: E | H177: D | I177: R | J177: O | K177: B | L177: M
A178: 4 | B178: V | C178: A | D178: C | E178: R | F178: L | G178: E | H178: T | I178: M | J178: G | K178: E | L178: A
A179: 5 | B179: I | C179: R | D179: U | E179: H | F179: R | G179: O | H179: E | I179: I | J179: S | K179: M | L179: G
A180: 6 | B180: U | C180: E | D180: O | E180: G | F180: T | G180: S | H180: I | I180: E | J180: T | K180: U | L180: N
A181: 7 | B181: R | C181: D | D181: L | E181: Z | F181: E | G181: V | H181: O | I181: R | J181: F | K181: S | L181: A
A182: 8 | B182: D | C182: A | D182: V | E182: O | F182: IJ | G182: L | H182: O | I182: E | J182: E | K182: K | L182: C
A183: 9 | B183: S | C183: M | D183: R | E183: N | F183: B | G183: N | H183: P | I183: R | J183: E | K183: A | L183: I
A184: 10 | B184: A | C184: D | D184: R | E184: U | F184: I | G184: V | H184: E | I184: N | J184: S | K184: A | L184: P
A185: 11 | B185: K | C185: L | D185: I | E185: M | F185: P | G185: L | H185: A | I185: N | J185: T | K185: T | L185: T
B187: ARMAGNAC | E187: KASDRUIVEN | H187: NACHTVORST | K187: WIJNPERS
B188: BLOESEM | E188: KLIMPLANT | H188: ONDER GLAS | K188: ZONNESCHIJN
B189: BORDEAUX | E189: LOIRE | H189: OOGSTFEEST
B190: DROESEM | E190: MADERA | H190: PORT
B191: DRUIVENSAP | E191: MUSKAAT | H191: ROZIJNEN
B194: Opgave: | C194: 10 | D194: Harry Potter
B196: 1 | C196: 2 | D196: 3 | E196: 4 | F196: 5 | G196: 6 | H196: 7 | I196: 8 | J196: 9 | K196: 10 | L196: 11
A197: 1 | B197: T | C197: B | D197: O | E197: E | F197: R | G197: P | H197: O | I197: E | J197: D | K197: E | L197: R
A198: 2 | B198: S | C198: A | D198: L | E198: S | F198: E | G198: M | H198: K | I198: IJ | J198: H | K198: M | L198: E
A199: 3 | B199: K | C199: G | D199: L | E199: W | F199: M | G199: P | H199: R | I199: A | J199: C | K199: A | L199: O
A200: 4 | B200: E | C200: C | D200: N | E200: I | F200: U | G200: T | H200: U | I200: H | J200: I | K200: D | L200: T
A201: 5 | B201: L | C201: H | D201: U | E201: I | F201: S | G201: E | H201: L | I201: F | J201: R | K201: E | L201: N
A202: 6 | B202: E | C202: T | D202: S | E202: D | F202: L | G202: M | H202: S | I202: A | J202: E | K202: K | L202: E
A203: 7 | B203: T | C203: T | D203: E | E203: W | F203: U | G203: L | H203: A | I203: O | J203: D | K203: K | L203: S
A204: 8 | B204: T | C204: W | D204: O | E204: R | F204: P | G204: K | H204: A | I204: N | J204: D | K204: I | L204: K
A205: 9 | B205: I | C205: D | D205: M | E205: E | F205: O | G205: R | H205: E | I205: B | J205: A | K205: D | L205: E
A206: 10 | B206: N | C206: I | D206: E | E206: T | F206: S | G206: N | H206: I | I206: E | J206: W | K206: Z | L206: H
A207: 11 | B207: E | C207: D | D207: T | E207: S | F207: A | G207: K | H207: M | I207: E | J207: Z | K207: E | L207: B
B209: ALSEM | E209: DIKKE DAME | H209: REMUS LUPOS | K209: ZWADDERICH
B210: BALLINGS | E210: DRAAK | H210: SKELETTINE | K210: ZWEINSTEIN
B211: BEROEMD | E211: HEKSENTOER | H211: SLURK
B212: BEZEMKAST | E212: HUISELF | H212: TALISMAN
B213: BOERPOEDER | E213: P.U.I.S.T | H213: WEDSTRIJD
B216: Opgave: | C216: 11 | D216: Tom Hanks
B218: 1 | C218: 2 | D218: 3 | E218: 4 | F218: 5 | G218: 6 | H218: 7 | I218: 8 | J218: 9 | K218: 10 | L218: 11
A219: 1 | B219: D | C219: L | D219: E | E219: I | F219: F | G219: Y | H219: L | I219: L | J219: A | K219: S | L219: S
A220: 2 | B220: G | C220: A | D220: D | E220: V | F220: O | G220: C | H220: A | I220: A | J220: T | K220: L | L220: D
A221: 3 | B221: F | C221: N | D221: V | E221: C | F221: A | G221: M | H221: E | I221: R | J221: A | K221: I | L221: I
A222: 4 | B222: L | C222: S | D222: I | E222: I | F222: T | G222: O | H222: A | I222: A | J222: D | K222: P | L222: E
A223: 5 | B223: A | C223: C | D223: R | E223: K | F223: D | G223: D | H223: Z | I223: L | J223: Y | K223: P | L223: H
A224: 6 | B224: S | C224: E | D224: R | E224: E | F224: I | G224: M | H224: E | I224: R | J224: P | K224: E | L224: D
A225: 7 | B225: H | C225: N | D225: B | E225: T | F225: L | G225: E | H225: O | I225: O | J225: A | K225: R | L225: N
A226: 8 | B226: B | C226: E | D226: I | E226: I | F226: B | G226: R | H226: R | I226: R | J226: D | K226: T | L226: E
A227: 9 | B227: A | C227: E | D227: F | E227: O | F227: I | G227: D | H227: U | I227: T | J227: S | K227: J | L227: K
A228: 10 | B228: C | C228: A | D228: L | E228: I | F228: F | G228: O | H228: R | I228: N | J228: I | K228: E | L228: E
A229: 11 | B229: K | C229: L | D229: A | E229: V | F229: I | G229: T | H229: S | I229: E | J229: F | K229: U | L229: B
B231: ADVOCAAT | E231: DAVID MORSE | H231: SALLY FIELD | K231: UITREIKING
B232: BEELD | E232: FESTIVAL | H232: SCENE
B233: BEKENDHEID | E233: FILMZAAL | H233: SLIPPERTJE
B234: CALIFORNIE | E234: FLASHBACK | H234: STUDIO
B235: CAMERA | E235: PREMIERE | H235: TRADITIE
B238: Opgave: | C238: 12 | D238: Madrid
B240: 1 | C240: 2 | D240: 3 | E240: 4 | F240: 5 | G240: 6 | H240: 7 | I240: 8 | J240: 9 | K240: 10 | L240: 11
... 3455 more rows

Sheet Oplossingen
B1: Titel: | C1: Oplossing: | E1: Tom Hanks
A2: 1 | B2: Star Wars | C2: Hyperdrive | D2: =VLOOKUP(D1,$B$1:$C$2000,1,0) ->  | E2: Titel of N/B
A3: 2 | B3: Pablo Picasso | C3: Compositie | D3: =IF(D1=D2,VLOOKUP(D1,$B$1:$C$2000,3,0)) ->  | E3: Opgave
A4: 3 | B4: Parachutisten | C4: Instructie
A5: 4 | B5: Paleizen en kastelen | C5: Cortewalle | D5: Vanaf nu kan U de knop gebruiken(zie meer onderaan).
A6: 5 | B6: Verandering | C6: Keerplaats | D6: $C$2000 in formule later aanpassen.
A7: 6 | B7: Beren | C7: Scheurkies | D7: Nu al gedaan.
A8: 7 | B8: Aerobics | C8: Hoofddraai
A9: 8 | B9: Orde of wanorde | C9: Onverzorgd
A10: 9 | B10: Druiven | C10: Druivenpit
A11: 10 | B11: Harry Potter | C11: Wachtwoord
A12: 11 | B12: Tom Hanks | C12: Storyboard
A13: 12 | B13: Madrid | C13: Hoogvlakte
A14: 13 | B14: Liefde en Vriendschap | C14: Moederhart
A15: 14 | B15: Liefdesromannetjes | C15: Vertrouwen
A16: 15 | B16: Eet smakelijk | C16: Savoureren
A17: 16 | B17: Bromfiets | C17: Windscherm
A18: 17 | B18: Seychellen | C18: Duikschool
A19: 18 | B19: Slim | C19: Uitgekookt
A20: 19 | B20: Het warenhuis Harrods | C20: Sleehakken
A21: 20 | B21: Kleine Lama | C21: Dierenarts
A22: 21 | B22: Jamie Oliver | C22: Verbeteren
A23: 22 | B23: Beroemde dieren | C23: Aristocats
A24: 23 | B24: Sleutels | C24: Ontsluiten
A25: 24 | B25: Bij de specialist | C25: Geneesheer
A26: 25 | B26: Wandelen | C26: Wandelgang
A27: 26 | B27: Madeira | C27: Riviertjes
A28: 27 | B28: Soepen | C28: Preiringen
A29: 28 | B29: Bosnië en Herzegovina | C29: Bergtoppen
A30: 29 | B30: Beweging | C30: Handballen
A31: 30 | B31: Spitsbergen | C31: Expedities
A32: 31 | B32: Anthony Hopkins | C32: Vertolking
A33: 32 | B33: De Habsburgers | C33: Burggarten
A34: 33 | B34: Andrea Bocelli | C34: Watersport
A35: 34 | B35: Architectuur | C35: Inrichting
A36: 35 | B36: Andesgebergte | C36: Chincilla
A37: 36 | B37: Op de boterham | C37: Serranoham
A38: 37 | B38: Helsinki | C38: Jugendstil
A39: 38 | B39: Sport | C39: Onsportief
A40: 39 | B40: Kersen | C40: Kersenbier
A41: 40 | B41: Nigeria | C41: Godsdienst
A42: 41 | B42: Eddy Merckx | C42: Klikpedaal
A43: 42 | B43: Pink | C43: Motorcross
A44: 43 | B44: Coco Chanel | C44: Excentriek
A45: 44 | B45: Geslaagd | C45: Jaargenoot
A46: 45 | B46: Aandelenmarkt | C46: Transactie
A47: 46 | B47: Niet alleen voor kinderen | C47: Jeugdjaren
A48: 47 | B48: De gelaarsde kat | C48: Klassieker
A49: 48 | B49: Tom Cruise | C49: Collateral
A50: 49 | B50: Luchtmacht | C50: Titulatuur
A51: 50 | B51: Portugal | C51: Mozambique
A52: 51 | B52: Buren | C52: Naambordje
A53: 52 | B53: De Azteken | C53: Vertellers
A54: 53 | B54: Cacao | C54: Cacaohaven
A55: 54 | B55: Delen van een huis | C55: Wenteltrap
A56: 55 | B56: Berggorilla's | C56: Foerageren
A57: 56 | B57: De onderneming | C57: Aftrekpost
A58: 57 | B58: Fitness | C58: Ademhaling
A59: 58 | B59: Kruiden en Specerijen | C59: Keukenzout
A60: 59 | B60: In het Labo | C60: Centrifuge
A61: 60 | B61: Venetië | C61: Tintoretto
A62: 61 | B62: Hedendaagse kunst | C62: Glasblazer
A63: 62 | B63: Vlaanderen | C63: Fietsroute
A64: 63 | B64: Het bedrijfsleven | C64: Aanstellen
A65: 64 | B65: Als ik kon toveren | C65: Heksensoep
A66: 65 | B66: Gotiek | C66: Decoratief
A67: 66 | B67: Shakira | C67: Interviews
A68: 67 | B68: Corfu | C68: Bergruggen
A69: 68 | B69: Autosport | C69: Bestuurder
A70: 69 | B70: Eiffeltoren | C70: Trouwfoto's
A71: 70 | B71: Curaçao | C71: Waterfront
A72: 71 | B72: Lyon | C72: Lawaaierig
A73: 72 | B73: Robbie Williams | C73: Wereldster
A74: 73 | B74: Rowan Atkinson | C74: Blackadder
A75: 74 | B75: Leraren | C75: Beoordelen
A76: 75 | B76: Placido Domingo | C76: Romanticus
A77: 76 | B77: Buenos Aires | C77: Nachtleven
A78: 77 | B78: Caribische eilanden | C78: Martinique
A79: 78 | B79: In Clubverband | C79: Materialen
A80: 79 | B80: De Arend | C80: Steenarend
A81: 80 | B81: Wit-Rusland | C81: Platteland
A82: 81 | B82: Van het land | C82: Zomertarwe
A83: 82 | B83: Belgische wielrenners | C83: Kattenberg
A84: 83 | B84: Tom Boonen | C84: Innergetic
A85: 84 | B85: Spaans eten | C85: Peterselie
A86: 85 | B86: Kanaaleilanden | C86: Vruchtbaar
A87: 86 | B87: Op het land | C87: Accessoire
A88: 87 | B88: Samen | C88: Eenwording
A89: 88 | B89: De vorige eeuw | C89: Gourmetten
A90: 89 | B90: De receptioniste | C90: Medewerker
A91: 90 | B91: Eerlijk | C91: Loyaliteit
A92: 91 | B92: Gebouwen | C92: Hallenhuis
A93: 92 | B93: Cate Blanchett | C93: Bekendheid
A94: 93 | B94: Toerisme | C94: Volpension
A95: 94 | B95: Dan Brown | C95: Amerikaans
A96: 95 | B96: Maleisië | C96: Perhentian
A97: 96 | B97: EHBO | C97: Zonnesteek
A98: 97 | B98: Expeditie Robinson | C98: Thuisfront
A99: 98 | B99: Prins William | C99: Luchtmacht
A100: 99 | B100: Feestdagen | C100: Guirlandes
A101: 100 | B101: Eb en vloed | C101: Stroomloop
A102: 101 | B102: Een zee van tijd | C102: Zevendaags
A103: 102 | B103: Bananen | C103: Onbevrucht
A104: 103 | B104: Genegenheid | C104: Hartendief
A105: 104 | B105: Gordijnen | C105: Gevarieerd
A106: 105 | B106: Doornroosje | C106: Ongelukkig
A107: 106 | B107: In de frituur | C107: Stoofvlees
A108: 107 | B108: Star trek | C108: Gastrollen
A109: 108 | B109: Sri Lanka | C109: Hooglanden
A110: 109 | B110: Once upon a time | C110: Treindepot
A111: 110 | B111: The Flintstones | C111: Familieman
A112: 111 | B112: Fleetwood Mac | C112: Toetsenist
A113: 112 | B113: Ierland | C113: Protestant
A114: 113 | B114: Bingospel | C114: Verslavend
A115: 114 | B115: Streekromannetjes | C115: Levensecht
A116: 115 | B116: Rode dingen | C116: Vermiljoen
A117: 116 | B117: Koen de Bouw | C117: Weegschaal
A118: 117 | B118: Salsa | C118: Danspassen
A119: 118 | B119: De Hypotheek | C119: Deskundige
A120: 119 | B120: Yoga | C120: Inspanning
A121: 120 | B121: De Bakker | C121: Verhouding
A122: 121 | B122: De Pyreneeën | C122: Dunbevolkt
A123: 122 | B123: Aboriginals | C123: Generaties
A124: 123 | B124: Paaseiland | C124: Mysterieus
A125: 124 | B125: Mode | C125: Applicatie
A126: 125 | B126: Antonio Banderas | C126: Nominaties
A127: 126 | B127: Jack Nicholson | C127: Tienerfilm
A128: 127 | B128: Het eiland Malta | C128: Glasblazen
A129: 128 | B129: Waterpolo | C129: Badkleding
A130: 129 | B130: Jarig | C130: Cadeautjes
A131: 130 | B131: Papier | C131: Broodzakje
A132: 131 | B132: Voertuigen | C132: Takelwagen
A133: 132 | B133: Einde | C133: Vastzitten
A134: 133 | B134: Kerstdiner | C134: Mozzarella
A135: 134 | B135: Rode zee | C135: Kikkererwt
A136: 135 | B136: Axelle Red | C136: Doorzetter
A137: 136 | B137: Amy Winehouse | C137: Roddelpers
A138: 137 | B138: In de woestijn | C138: Hagedissen
A139: 138 | B139: Magie | C139: Middeltjes
A140: 139 | B140: Turnen | C140: Competitie
A141: 140 | B141: Jennifer Lopez | C141: Schoonheid
A142: 141 | B142: Oom Donald | C142: Hoogmoedig
A143: 142 | B143: Hunnen | C143: Tegenstand
A144: 143 | B144: Beauty | C144: Goudtinten
A145: 144 | B145: Napoleon Bonaparte | C145: Welgesteld
A146: 145 | B146: Los Angeles | C146: Dierentuin
A147: 146 | B147: Koude streken | C147: Poolmilieu
A148: 147 | B148: Her Rijk der Inca's | C148: Bouwwerken
A149: 148 | B149: Flamenco | C149: Vervoering
A150: 149 | B150: Het gouden Praag | C150: Kruittoren
A151: 150 | B151: Argentinië | C151: Verbanning
A152: 151 | B152: Jake Gyllenhaal | C152: Soundtrack
A153: 152 | B153: Etenstijd | C153: Tafelappel
A154: 153 | B154: De stad Berlijn | C154: Schonefeld
A155: 154 | B155: Ghana | C155: Districten
A156: 155 | B156: Mechanica | C156: Frequentie
A157: 156 | B157: Duitse leenwoorden | C157: Claviatuur
A158: 157 | B158: Robert De Niro | C158: Goodfellas
A159: 158 | B159: Sven Nys | C159: Ondergrond
A160: 159 | B160: Delfstoffen | C160: Keukenzout
A161: 160 | B161: Suske en Wiske | C161: Tekeningen
A162: 161 | B162: Hout | C162: Beukenhout
A163: 162 | B163: Londen | C163: Modehuizen
A164: 163 | B164: Kinderfeestje | C164: Lampionnen
A165: 164 | B165: Wales | C165: Zeeklimaat
A166: 165 | B166: Andrea Bocelli | C166: Dwarsfluit
A167: 166 | B167: Computertaal | C167: Netiquette
A168: 167 | B168: De Schoudertas | C168: Avondtasje
A169: 168 | B169: Thuis winkelen | C169: Vaatwasser
A170: 169 | B170: Bangkok | C170: Attracties
A171: 170 | B171: Bhutan | C171: Trashigang
A172: 171 | B172: Eden Hazard | C172: Doorkoppen
A173: 172 | B173: Inspector Morse | C173: Onbegrepen
A174: 173 | B174: Presentatoren | C174: Spelregels
A175: 174 | B175: Energiebedrijf | C175: Gasleiding
A176: 175 | B176: Honduras | C176: Gordeldier
A177: 176 | B177: Eric Clapton | C177: Leadzanger
A178: 177 | B178: Glenn Close | C178: Filmdebuut
A179: 178 | B179: Textielbewerking | C179: Uitpluizen
A180: 179 | B180: Tom Cruise | C180: Gescheiden
A181: 180 | B181: Naar de apotheek | C181: Doseerdoos
A182: 181 | B182: Stemmingen en gevoelens | C182: Emotioneel
A183: 182 | B183: Onze atleten | C183: Voetballer
A184: 183 | B184: Australië | C184: Kookaburra
A185: 184 | B185: Isabel Allende | C185: Indringend
A186: 185 | B186: Winkel | C186: Parfumerie
A187: 186 | B187: Kokkerellen | C187: Kookcursus
A188: 187 | B188: Glasschilderkunst | C188: Compositie
A189: 188 | B189: Geld | C189: Geldopname
A190: 189 | B190: Jan Decleir | C190: Productie
A191: 190 | B191: Sylvester Stallone | C191: Hardhandig
A192: 191 | B192: Dat is een fabeltje | C192: Dierenepos
A193: 192 | B193: Hoe heurt het eigenlijk? | C193: Overdeftig
A194: 193 | B194: Beethoven | C194: Hardhorend
A195: 194 | B195: Ivanhoe | C195: Ontvoering
A196: 195 | B196: Franz Peter Schubert | C196: Toonladder
A197: 196 | B197: Vikingverhalen | C197: Noormannen
A198: 197 | B198: Eddy Merckx | C198: Voorsprong
A199: 198 | B199: Bedrijfsuitstap | C199: Verzamelen
A200: 199 | B200: Antiek | C200: Verzilverd
... 1917 more rows
